Workbook

Sheet CoverSheet
A3: Gas Pipeline Businesses
A4: Price-Quality Regulation 1 October 2022 Reset
A5: Default Price Path Starting Price Adjustment model
A17: Published 31 May 2022

Sheet Description
A1: Description
B2: Introduction / overview:
B3: The purpose of the starting price adjustment model is to show how changes in various inputs, such as the WACC, expenditure allowances, and accelerated depreciation, contribute to changes in starting prices from a roll-over to draft reset, and the draft reset to final.
B5: Key inputs:
B6: Key inputs in the WACC waterfall model are the the outputs from the financial model, including under various scenarios such as different expenditure allowances, accelerated depreciation factors, and CPI / CPRG forecasts.
B8: Key modelling / policy decisions or calculations:
B9: The model calculates the the impact on starting prices that each factor contributes by comparing starting prices under various scenarios, where inputs into the financial model are varied, holding each other input constant.
B12: What has changed since the draft decision:
B13: A new section has been added to calculate the impact that each factor contributes to changes in starting prices from the draft to final decision.
B15: Key outputs:
B16: The starting price adjustment model is used to produce the waterfall chart which shows the contribution of varying factors to changes in starting prices from a roll-over to the draft decision, and the draft decision to the final decision.

Sheet Table of Contents
A1: Table of Contents
B4: Sheet Name | C4: Link
B5: Inputs | C5: Inputs
C6: Allowable Notional Revenues for 2016 (to be rolled over)
C7: 2017 Draft DPP Reset CPRG and CPI
C8: 2017 Draft DPP Reset Financial Outputs (Draft decision)
C9: 2017 Draft DPP Reset Financial Outputs (2013 WACC 7.44%, cost of debt 5.38%, leverage 44%)
C10: 2017 Draft DPP Reset Operating Expenditure Allowance for 2017
C11: 2013 DPP Operating Expenditure Allowance for 2017
C12: 2017 Final DPP Reset CPRG and CPI
C13: 2017 Final DPP Reset Financial Outputs
C14: 2017 Draft DPP Reset Financial Outputs (using 2017 Final WACC 6.41%, cost of debt 4.76%)
C15: 2017 Draft DPP Reset Financial Outputs (using 2017 Final Opex allowances)
C16: 2017 Draft DPP Reset Financial Outputs (using 2017 Final Capex allowances)
C17: 2017 Draft DPP Reset Financial Outputs (using 2017 Final CPI forecasts)
C18: 2017 Final DPP Reset Financial Outputs (using 2013 WACC, cost of debt, leverage)
B19: Rolled over and Reset Prices | C19: Rolled over and Draft Reset Prices
C20: GasNet
C21: Powerco
C22: Vector
C23: First Gas Distribution
C24: First Gas Transmission
B25: Rolled over and Reset Prices | C25: Rolled over and Final Reset Prices
C26: GasNet
C27: Powerco
C28: Vector
C29: First Gas Distribution
C30: First Gas Transmission
B31: Impact of 2017 Reset | C31: Impact of 2017 Final Reset
C32: i) Final Reset compared to Roll Over
C33: ii) Draft Reset compared to Roll Over
C34: iii) Final Reset compared to Draft Reset
B35: Waterfall Chart for Final | C35: Figures for Waterfall Chart
B36: Reasons Paper Tables | C36: Reasons Paper Tables
C37: Starting prices (net of pass-through and recoverable costs)
C38: Estimated revenue over the regulatory period (net of pass-through and recoverable costs)
C39: Impact of reset on price/revenue cap - WACC scenarios
C40: Impact of reset on price/revenue cap – expenditure scenarios
C41: Changes in starting prices - industry total allowable revenues ($'000s)

Sheet Inputs
A1: Inputs | K1: Notes
A3: Maximum Allowable Revenues for 2022 (to be rolled over)
A5: 2022 maximum allowable revenue (MAR) per the 2017 DPP | B5: MAR ($m) | C5: MAR ($000)
A6: GasNet | B6: =C6/1000 -> 4.383998268 | C6: 4383.998268
A7: Powerco | B7: =C7/1000 -> 51.43556862 | C7: 51435.56862
A8: Vector | B8: 50.7022772 | C8: 50702.2772
A9: First Gas Distribution | B9: 24.64615131 | C9: 24646.15131
A10: First Gas Transmission | B10: 131.6233864 | C10: 131623.3864
A11: Total | B11: 262.7913818 | C11: =SUM(C6:C10) -> 262791.3818
A12: Source: 2017 DPP Financial model, 'Outputs' sheet.
A14: 2022 Draft DPP Reset CPRG and CPI
A16: CPRG (Pricing years) | D16: 2022 | E16: =D16+1 -> 2023 | F16: =E16+1 -> 2024 | G16: 2025 | H16: 2026
A17: GasNet | D17: 0.001109051256 | E17: 0.0007452748755 | F17: 0.0005188765247 | G17: 0.0003057413528 | H17: 0.0001053972105
A18: Powerco | D18: 0.01534142993 | E18: 0.01493318336 | F18: 0.01427319055 | G18: 0.01361786665 | H18: 0.01296971087
A19: Vector | D19: 0.01378072768 | E19: 0.01570962614 | F19: 0.01050317518 | G19: 0.01032279208 | H19: 0.01014377539
A20: First Gas Distribution | D20: -0.006621538359 | E20: -0.006892505495 | F20: -0.007156717435 | G20: -0.007413905448 | H20: -0.007663666789
A21: First Gas Transmission | K21: Note: As the GTB is subject to a revenue cap, the constant price revenue growth figure is unnecessary, hence set at 0
A22: Source: Constant price revenue growth Model, 'Output' sheet
A24: CPI Forecasts | B24: =C24-1 -> 2020 | C24: =D24-1 -> 2021 | D24: =D16 -> 2022 | E24: =E16 -> 2023 | F24: 2024 | G24: 2025 | H24: 2026
A25: Forecast changes in CPI used for revaluations, June year-ends | C25: 0.03342884432 | D25: 0.052 | E25: 0.025 | F25: 0.021 | G25: 0.02 | H25: 0.02
A26: Forecast changes in CPI used for revaluations, September year-ends | C26: 0.04933586338 | D26: 0.04 | E26: 0.023 | F26: 0.02 | G26: 0.02 | H26: 0.02
A27: Forecast changes in the CPI element of the price path, lagged | C27: 0.01882640587 | D27: 0.01463882889 | E27: 0.04925236518 | F27: 0.03836140997 | G27: 0.02248782285 | H27: 0.02024771097
A28: Forecast changes in the CPI element of the price path, not lagged | C28: 0.02811532047 | D28: 0.05138887601 | E28: 0.02746210288 | F28: 0.02074756236 | G28: 0.02 | H28: 0.02
A29: Source: CPI Model, 'Output' sheet
A31: WACC (67th percentile) | B31: 0.0607
A33: 2022 Draft DPP Reset Financial Outputs (Draft decision)
C34: GasNet | D34: Powerco | E34: Vector | F34: First Gas Distribution | G34: First Gas Transmission
A35: Supplier number | C35: 1 | D35: 2 | E35: 3 | F35: 4 | G35: 5
A36: PV of BBAR at 30 September 2022 | C36: 19288.02251 | D36: 247968.4458 | E36: 230462.7807 | F36: 119361.9568 | G36: 626669.1958
A37: Starting price for industry-wide X factor | C37: 5212.296196 | D37: 65707.69495 | E37: 61377.28504 | F37: 32620.65293 | G37: 171803.8482
A38: Starting price for applicable X factor | C38: 4838.789014 | D38: 58875.07467 | E38: 56856.01745 | F38: 28249.96793 | G38: 148761.8512
A39: PV at 30 September 2022 of MAR (applicable X) | C39: 19288.02251 | D39: 247968.4458 | E39: 230462.7807 | F39: 119361.9568 | G39: 626669.1958
A40: MAR (industry-wide X factor), pricing period ending 2023 | C40: 5212.296196 | D40: 65707.69495 | E40: 61377.28504 | F40: 32620.65293 | G40: 171803.8482
A41: MAR (industry-wide X factor), pricing period ending 2024 | C41: 5415.055515 | D41: 69202.1708 | E41: 64401.19054 | F41: 33629.61464 | G41: 175368.3593
A42: MAR (industry-wide X factor), pricing period ending 2025 | C42: 5538.521162 | D42: 71721.9551 | E42: 66529.18311 | F42: 34130.93785 | G42: 178875.7264
A43: MAR (industry-wide X factor), pricing period ending 2026 | C43: 5651.259102 | D43: 74123.20822 | E43: 68564.76819 | F43: 34555.14693 | G43: 182453.241
A44: MAR (applicable X factor), pricing period ending 2023 | C44: 4838.789014 | D44: 58875.07467 | E44: 56856.01745 | F44: 28249.96793 | G44: 148761.8512
A45: MAR (applicable X factor), pricing period ending 2024 | C45: 5284.127747 | D45: 66647.73149 | E45: 62771.43975 | F45: 32036.11807 | G45: 167033.1267
A46: MAR (applicable X factor), pricing period ending 2025 | C46: 5681.029058 | D46: 74245.16702 | E46: 68230.69846 | F46: 35765.0554 | G46: 187411.1682
A47: MAR (applicable X factor), pricing period ending 2026 | C47: 6093.140702 | D47: 82474.69009 | E47: 73989.15549 | F47: 39830.53218 | G47: 210275.3307
A48: BBAR before tax, for the BBAR period ending 2023 | C48: 3776.986434 | D48: 65882.1041 | E48: 45490.07026 | F48: 30847.48545 | G48: 166684.3638
A49: BBAR before tax, for the BBAR period ending 2024 | C49: 5363.256666 | D49: 69649.00803 | E49: 64787.59645 | F49: 33349.69237 | G49: 176165.8429
A50: BBAR before tax, for the BBAR period ending 2025 | C50: 5545.134442 | D50: 71575.60601 | E50: 66067.98336 | F50: 34820.13363 | G50: 180670.6239
A51: BBAR before tax, for the BBAR period ending 2026 | C51: 5684.219097 | D51: 73596.86292 | E51: 67141.72739 | F51: 36269.39439 | G51: 185835.5969
A52: ΔD | C52: 1.001855153 | D52: 1.03050371 | E52: 1.029706844 | F52: 0.9865315951 | G52: N/A
A53: ANR 2023 (applicable X-factor) | C53: 4829.828944 | D53: 57132.32676 | E53: 55215.73231 | F53: 28635.64439 | G53: N/A
A54: Source: 2022 Draft, Financial Model, 'Outputs' sheet
A56: 2022 Draft DPP Reset Financial Outputs (2017 WACC 6.41%, cost of debt 4.76%, leverage 42%)
C57: GasNet | D57: Powerco | E57: Vector | F57: First Gas Distribution | G57: First Gas Transmission
A58: Supplier number | C58: 1 | D58: 2 | E58: 3 | F58: 4 | G58: 5
A59: PV of BBAR at 30 September 2022 | C59: 19450.37337 | D59: 250967.9112 | E59: 233798.2888 | F59: 121091.228 | G59: 633937.5686
A60: Starting price for industry-wide X factor | C60: 5290.802774 | D60: 66944.22659 | E60: 62678.36821 | F60: 33310.27777 | G60: 174937.0582
A61: Starting price for applicable X factor | C61: 4912.646298 | D61: 60000.2746 | E61: 58073.03392 | F61: 28858.14698 | G61: 151532.558
A62: PV at 30 September 2022 of MAR (applicable X) | C62: 19450.37337 | D62: 250967.9112 | E62: 233798.2888 | F62: 121091.228 | G62: 633937.5686
A63: MAR (industry-wide X factor), pricing period ending 2023 | C63: 5290.802774 | D63: 66944.22659 | E63: 62678.36821 | F63: 33310.27777 | G63: 174937.0582
A64: MAR (industry-wide X factor), pricing period ending 2024 | C64: 5496.616014 | D64: 70504.46383 | E64: 65766.37482 | F64: 34340.56968 | G64: 178566.5757
A65: MAR (industry-wide X factor), pricing period ending 2025 | C65: 5621.941276 | D65: 73071.66713 | E65: 67939.47684 | F65: 34852.49124 | G65: 182137.9073
A66: MAR (industry-wide X factor), pricing period ending 2026 | C66: 5736.377252 | D66: 75518.10865 | E66: 70018.21249 | F66: 35285.66841 | G66: 185780.6654
A67: MAR (applicable X factor), pricing period ending 2023 | C67: 4912.646298 | D67: 60000.2746 | E67: 58073.03392 | F67: 28858.14698 | G67: 151532.558
A68: MAR (applicable X factor), pricing period ending 2024 | C68: 5364.782498 | D68: 67921.47974 | E68: 64115.07723 | F68: 32725.8072 | G68: 170144.1381
A69: MAR (applicable X factor), pricing period ending 2025 | C69: 5767.741947 | D69: 75664.11481 | E69: 69691.19266 | F69: 36535.0229 | G69: 190901.723
A70: MAR (applicable X factor), pricing period ending 2026 | C70: 6186.143893 | D70: 84050.91766 | E70: 75572.91082 | F70: 40688.02325 | G70: 214191.7332
A71: BBAR before tax, for the BBAR period ending 2023 | C71: 3838.906981 | D71: 67192.28599 | E71: 46554.96706 | F71: 31532.05673 | G71: 169897.0326
A72: BBAR before tax, for the BBAR period ending 2024 | C72: 5446.248011 | D72: 70968.73317 | E72: 66192.62481 | F72: 34060.53543 | G72: 179427.1438
A73: BBAR before tax, for the BBAR period ending 2025 | C73: 5627.297658 | D73: 72892.07235 | E73: 67434.1021 | F73: 35549.77768 | G73: 183916.6929
A74: BBAR before tax, for the BBAR period ending 2026 | C74: 5765.645045 | D74: 74916.15594 | E74: 68473.71277 | F74: 37018.74325 | G74: 189065.6737
A75: ΔD | C75: 1.001855153 | D75: 1.03050371 | E75: 1.029706844 | F75: 0.9865315951 | G75: N/A
A76: ANR 2022 (applicable X-factor) | C76: 4903.549465 | D76: 58224.2199 | E76: 56397.63809 | F76: 29252.12647 | G76: N/A
A77: source: 2022 Draft, Financial Model, 'Outputs' sheet, using 2017 values for WACC (6.41%), cost of debt (4.76%), and leverage (42%)
A79: 2022 Draft DPP Reset Financial Outputs without asset stranding adjustments (Draft decision)
C80: GasNet | D80: Powerco | E80: Vector | F80: First Gas Distribution | G80: First Gas Transmission
A81: Supplier number | C81: 1 | D81: 2 | E81: 3 | F81: 4 | G81: 5
A82: PV of BBAR at 30 September 2022 | C82: 16813.98716 | D82: 232833.0508 | E82: 188256.7181 | F82: 112279.5758 | G82: 543828.6672
A83: Starting price for industry-wide X factor | C83: 4543.725582 | D83: 61697.05595 | E83: 50136.88637 | F83: 30685.09575 | G83: 149092.7884
A84: Starting price for applicable X factor | C84: 4543.725582 | D84: 61697.05595 | E84: 50136.88637 | F84: 30685.09575 | G84: 149092.7884
A85: PV at 30 September 2022 of MAR (applicable X) | C85: 16813.98716 | D85: 232833.0508 | E85: 188256.7181 | F85: 112279.5758 | G85: 543828.6672
A86: MAR (industry-wide X factor), pricing period ending 2023 | C86: 4543.725582 | D86: 61697.05595 | E86: 50136.88637 | F86: 30685.09575 | G86: 149092.7884
A87: MAR (industry-wide X factor), pricing period ending 2024 | C87: 4720.477376 | D87: 64978.23743 | E87: 52607.00551 | F87: 31634.19039 | G87: 152186.1003
A88: MAR (industry-wide X factor), pricing period ending 2025 | C88: 4828.106336 | D88: 67344.22019 | E88: 54345.28575 | F88: 32105.76743 | G88: 155229.8223
A89: MAR (industry-wide X factor), pricing period ending 2026 | C89: 4926.38361 | D89: 69598.90662 | E89: 56008.08164 | F89: 32504.80591 | G89: 158334.4188
A90: MAR (applicable X factor), pricing period ending 2023 | C90: 4543.725582 | D90: 61697.05595 | E90: 50136.88637 | F90: 30685.09575 | G90: 149092.7884
A91: MAR (applicable X factor), pricing period ending 2024 | C91: 4720.477376 | D91: 64978.23743 | E91: 52607.00551 | F91: 31634.19039 | G91: 152186.1003
A92: MAR (applicable X factor), pricing period ending 2025 | C92: 4828.106336 | D92: 67344.22019 | E92: 54345.28575 | F92: 32105.76743 | G92: 155229.8223
A93: MAR (applicable X factor), pricing period ending 2026 | C93: 4926.38361 | D93: 69598.90662 | E93: 56008.08164 | F93: 32504.80591 | G93: 158334.4188
A94: BBAR before tax, for the BBAR period ending 2023 | C94: 3276.733988 | D94: 61696.78546 | E94: 36779.13479 | F94: 28937.24039 | G94: 143691.8739
A95: BBAR before tax, for the BBAR period ending 2024 | C95: 4671.292629 | D95: 65393.17866 | E95: 52884.84073 | F95: 31373.39291 | G95: 152793.8213
A96: BBAR before tax, for the BBAR period ending 2025 | C96: 4841.745489 | D96: 67268.67729 | E96: 54113.68764 | F96: 32785.3301 | G96: 157105.8378
A97: BBAR before tax, for the BBAR period ending 2026 | C97: 4969.620967 | D97: 69240.04603 | E97: 55140.87244 | F97: 34176.7149 | G97: 162170.5002
A98: ΔD | C98: 1.001855153 | D98: 1.03050371 | E98: 1.029706844 | F98: 0.9865315951 | G98: N/A
A99: ANR 2022 (applicable X-factor) | C99: 4535.311886 | D99: 59870.77521 | E99: 48690.44686 | F99: 31104.01725 | G99: N/A
A100: source: 2022 Draft, Financial Model, 'Outputs' sheet, using an adjustment factor of 1 in rows 28 & 29 of the inputs sheet, and an alternative X-factor of 0 in row 42 of the inputs sheet
A102: 2022 Draft DPP Reset Financial Outputs, with accelerated depreciation, without smoothing (Draft decision)
C103: GasNet | D103: Powerco | E103: Vector | F103: First Gas Distribution | G103: First Gas Transmission
A104: Supplier number | C104: 1 | D104: 2 | E104: 3 | F104: 4 | G104: 5
A105: PV of BBAR at 30 September 2022 | C105: 19288.02251 | D105: 247968.4458 | E105: 230462.7807 | F105: 119361.9568 | G105: 626669.1958
A106: Starting price for industry-wide X factor | C106: 5212.296196 | D106: 65707.69495 | E106: 61377.28504 | F106: 32620.65293 | G106: 171803.8482
A107: Starting price for applicable X factor | C107: 5212.296196 | D107: 65707.69495 | E107: 61377.28504 | F107: 32620.65293 | G107: 171803.8482
A108: PV at 30 September 2022 of MAR (applicable X) | C108: 19288.02251 | D108: 247968.4458 | E108: 230462.7807 | F108: 119361.9568 | G108: 626669.1958
A109: MAR (industry-wide X factor), pricing period ending 2023 | C109: 5212.296196 | D109: 65707.69495 | E109: 61377.28504 | F109: 32620.65293 | G109: 171803.8482
A110: MAR (industry-wide X factor), pricing period ending 2024 | C110: 5415.055515 | D110: 69202.1708 | E110: 64401.19054 | F110: 33629.61464 | G110: 175368.3593
A111: MAR (industry-wide X factor), pricing period ending 2025 | C111: 5538.521162 | D111: 71721.9551 | E111: 66529.18311 | F111: 34130.93785 | G111: 178875.7264
A112: MAR (industry-wide X factor), pricing period ending 2026 | C112: 5651.259102 | D112: 74123.20822 | E112: 68564.76819 | F112: 34555.14693 | G112: 182453.241
A113: MAR (applicable X factor), pricing period ending 2023 | C113: 5212.296196 | D113: 65707.69495 | E113: 61377.28504 | F113: 32620.65293 | G113: 171803.8482
A114: MAR (applicable X factor), pricing period ending 2024 | C114: 5415.055515 | D114: 69202.1708 | E114: 64401.19054 | F114: 33629.61464 | G114: 175368.3593
A115: MAR (applicable X factor), pricing period ending 2025 | C115: 5538.521162 | D115: 71721.9551 | E115: 66529.18311 | F115: 34130.93785 | G115: 178875.7264
A116: MAR (applicable X factor), pricing period ending 2026 | C116: 5651.259102 | D116: 74123.20822 | E116: 68564.76819 | F116: 34555.14693 | G116: 182453.241
A117: BBAR before tax, for the BBAR period ending 2023 | C117: 3776.986434 | D117: 65882.1041 | E117: 45490.07026 | F117: 30847.48545 | G117: 166684.3638
A118: BBAR before tax, for the BBAR period ending 2024 | C118: 5363.256666 | D118: 69649.00803 | E118: 64787.59645 | F118: 33349.69237 | G118: 176165.8429
A119: BBAR before tax, for the BBAR period ending 2025 | C119: 5545.134442 | D119: 71575.60601 | E119: 66067.98336 | F119: 34820.13363 | G119: 180670.6239
A120: BBAR before tax, for the BBAR period ending 2026 | C120: 5684.219097 | D120: 73596.86292 | E120: 67141.72739 | F120: 36269.39439 | G120: 185835.5969
A121: ΔD | C121: 1.001855153 | D121: 1.03050371 | E121: 1.029706844 | F121: 0.9865315951 | G121: N/A
A122: ANR 2022 (applicable X-factor) | C122: 5202.644496 | D122: 63762.69618 | E122: 59606.56221 | F122: 33065.99919 | G122: N/A
A123: source: 2022 Draft, Financial Model, 'Outputs' sheet, using an alternative X-factor of 0 in row 42 of the inputs sheet
A126: 2022 Draft DPP Reset Operating Expenditure Allowance for 2023
C127: GasNet | D127: Powerco | E127: Vector | F127: First Gas distribution | G127: First Gas Transmission
A128: Operating expenditure in year ending 2023 | C128: 2030.51322 | D128: 18350 | E128: 14227.75 | F128: 9460.172589 | G128: 49274
A129: source: 2022 Draft, Expenditure Model, 'Allowance vs Actuals' sheet, using the year-end adjusted allowances
A131: 2022 Draft DPP Reset Capital Expenditure Allowance for 2023
C132: GasNet | D132: PowerCo | E132: Vector | F132: First Gas Distribution | G132: First Gas Transmission
A133: Capital expenditure in year ending 2023 | C133: 888.7230001 | D133: 16872.16864 | E133: 5662.147083 | F133: 12890.53495 | G133: 52148.56991
A134: source: 2022 Draft, Expenditure Model, 'Allowance vs Actuals' sheet, using the year-end adjusted allowances
A136: 2017 DPP Operating Expenditure Allowance for 2022
C137: GasNet | D137: Powerco | E137: Vector | F137: First Gas Distribution | G137: First Gas Transmission
A138: Opex for the year ending 2022 | C138: 1782.748816 | D138: 18435.52952 | E138: 13208.87932 | F138: 7883.421218 | G138: 47131.84076
A139: source: 2022 Draft, Expenditure Model, 'Allowance vs Actuals' sheet, using the year-end adjusted allowances
A141: 2017 DPP Capital Expenditure Allowance for 2022
C142: GasNet | D142: Powerco | E142: Vector | F142: First Gas Distribution | G142: First Gas Transmission
A143: Capex for the year ending 2022 | C143: 892.5384701 | D143: 14350.82414 | E143: 18641.42915 | F143: 11805.55703 | G143: 24115.05082
A144: source: 2022 Draft, Expenditure Model, 'Allowance vs Actuals' sheet, using the year-end adjusted allowances
A147: 2022 Final DPP Reset CPRG and CPI
A148: CPRG (Pricing years) | D148: 2022 | E148: 2023 | F148: 2024 | G148: 2025 | H148: 2026 | I148: 2027
A149: GasNet | D149: =TRANSPOSE([1]Output!$B$3:$E$8) -> -0.001003335731 | E149: -0.00292858236 | F149: -0.003206394073 | G149: -0.003464122892 | H149: -0.003702911872 | I149: -0.00392390725
A150: Powerco | D150: 0.01365074927 | E150: 0.01423886913 | F150: 0.01347482345 | G150: 0.01273583812 | H150: 0.01202310459 | I150: 0.01134481886
A151: Vector | D151: 0.01402179604 | E151: 0.01548673721 | F151: 0.01032253435 | G151: 0.01021189474 | H151: 0.0101010024 | I151: 0.01003288107
A152: First Gas Dist | D152: 0.02595745483 | E152: 0.001446936929 | F152: 0.001283574806 | G152: 0.001123060514 | H152: 0.0009656319629 | I152: 0.000811366982
A153: First Gas Trans | D153: 0 | E153: 0 | F153: 0 | G153: 0 | H153: 0 | I153: 0
A154: Source: 2022 Final, Constant price revenue growth Model, 'Output' sheet
A156: WACC (67th percentile) | B156: 0.0614
A158: CPI Forecasts | B158: 2020 | C158: 2021 | D158: 2022 | E158: 2023 | F158: 2024 | G158: 2025 | H158: 2026 | I158: 2027
A159: Forecast changes in CPI used for revaluations, June year-ends | B159: =[2]Output!F8 -> 0.01453488372 | C159: =[2]Output!G8 -> 0.03342884432 | D159: =[2]Output!H8 -> 0.063 | E159: =[2]Output!I8 -> 0.026 | F159: =[2]Output!J8 -> 0.023 | G159: =[2]Output!K8 -> 0.02 | H159: =[2]Output!L8 -> 0.02 | I159: =[2]Output!M8 -> 0.02
A160: Forecast changes in CPI used for revaluations, September year-ends | B160: =[2]Output!F9 -> 0.01443695861 | C160: =[2]Output!G9 -> 0.04933586338 | D160: =[2]Output!H9 -> 0.05 | E160: =[2]Output!I9 -> 0.025 | F160: =[2]Output!J9 -> 0.022 | G160: =[2]Output!K9 -> 0.02 | H160: =[2]Output!L9 -> 0.02 | I160: =[2]Output!M9 -> 0.02
A161: Forecast changes in the CPI element of the price path, lagged | B161: =[2]Output!F10 -> 0.01690701144 | C161: =[2]Output!G10 -> 0.01882640587 | D161: =[2]Output!H10 -> 0.01463882889 | E161: =[2]Output!I10 -> 0.05214947966 | F161: =[2]Output!J10 -> 0.04628530323 | G161: =[2]Output!K10 -> 0.02474373522 | H161: =[2]Output!L10 -> 0.02149215402 | I161: =[2]Output!M10 -> 0.02
A162: Forecast changes in the CPI element of the price path, not lagged | B162: =[2]Output!F11 -> 0.01819505095 | C162: =[2]Output!G11 -> 0.02811532047 | D162: =[2]Output!H11 -> 0.05954901506 | E162: =[2]Output!I11 -> 0.03092122799 | F162: =[2]Output!J11 -> 0.02324453846 | G162: =[2]Output!K11 -> 0.02024799149 | H162: =[2]Output!L11 -> 0.02 | I162: =[2]Output!M11 -> 0.02
A163: source: 2022 Final, CPI Model, 'Output' sheet
A165: 2022 Final DPP Reset Financial Outputs
C166: GasNet | D166: Powerco | E166: Vector | F166: First Gas Distribution | G166: First Gas Transmission
A167: Supplier number | C167: 1 | D167: 2 | E167: 3 | F167: 4 | G167: 5
A168: PV of BBAR at 30 September 2022 | C168: =[3]Outputs!C27 -> 19450.54838 | D168: =[3]Outputs!D27 -> 235151.9976 | E168: =[3]Outputs!E27 -> 220170.6445 | F168: =[3]Outputs!F27 -> 123060.1339 | G168: =[3]Outputs!G27 -> 607398.9883
A169: Starting price for industry-wide X factor | C169: =[3]Outputs!C28 -> 5255.518198 | D169: =[3]Outputs!D28 -> 62036.03292 | E169: =[3]Outputs!E28 -> 58316.78358 | F169: =[3]Outputs!F28 -> 33030.05988 | G169: =[3]Outputs!G28 -> 166426.9881
A170: Starting price for applicable X factor | C170: =[3]Outputs!C29 -> 4852.064024 | D170: =[3]Outputs!D29 -> 57632.91109 | E170: =[3]Outputs!E29 -> 55797.71004 | F170: =[3]Outputs!F29 -> 28565.85208 | G170: =[3]Outputs!G29 -> 147227.2812
A171: PV at 30 September 2022 of MAR (applicable X) | C171: =[3]Outputs!C30 -> 19450.54838 | D171: =[3]Outputs!D30 -> 235151.9976 | E171: =[3]Outputs!E30 -> 220170.6445 | F171: =[3]Outputs!F30 -> 123060.1339 | G171: =[3]Outputs!G30 -> 607398.9883
A172: MAR (industry-wide X factor), pricing period ending 2023 | C172: =[3]Outputs!C31 -> 5255.518198 | D172: =[3]Outputs!D31 -> 62036.03292 | E172: =[3]Outputs!E31 -> 58316.78358 | F172: =[3]Outputs!F31 -> 33030.05988 | G172: =[3]Outputs!G31 -> 166426.9881
A173: MAR (industry-wide X factor), pricing period ending 2024 | C173: =[3]Outputs!C32 -> 5481.140223 | D173: =[3]Outputs!D32 -> 65782.00513 | E173: =[3]Outputs!E32 -> 61645.83328 | F173: =[3]Outputs!F32 -> 34603.22511 | G173: =[3]Outputs!G32 -> 170295.5066
A174: MAR (industry-wide X factor), pricing period ending 2025 | C174: =[3]Outputs!C33 -> 5597.306944 | D174: =[3]Outputs!D33 -> 68268.21664 | E174: =[3]Outputs!E33 -> 63816.27891 | F174: =[3]Outputs!F33 -> 35499.26125 | G174: =[3]Outputs!G33 -> 173743.6485
A175: MAR (industry-wide X factor), pricing period ending 2026 | C175: =[3]Outputs!C34 -> 5696.433339 | D175: =[3]Outputs!D34 -> 70573.88425 | E175: =[3]Outputs!E34 -> 65846.29061 | F175: =[3]Outputs!F34 -> 36297.23279 | G175: =[3]Outputs!G34 -> 177218.5215
A176: MAR (applicable X factor), pricing period ending 2023 | C176: =[3]Outputs!C35 -> 4852.064024 | D176: =[3]Outputs!D35 -> 57632.91109 | E176: =[3]Outputs!E35 -> 58316.78358 | F176: =[3]Outputs!F35 -> 28565.85208 | G176: =[3]Outputs!G35 -> 147227.2812
A177: MAR (applicable X factor), pricing period ending 2024 | C177: =[3]Outputs!C36 -> 5338.685665 | D177: =[3]Outputs!D36 -> 64168.65632 | E177: =[3]Outputs!E36 -> 61645.83328 | F177: =[3]Outputs!F36 -> 32919.0342 | G177: =[3]Outputs!G36 -> 163454.7199
A178: MAR (applicable X factor), pricing period ending 2025 | C178: =[3]Outputs!C37 -> 5751.684047 | D178: =[3]Outputs!D37 -> 69923.58638 | E178: =[3]Outputs!E37 -> 63816.27891 | F178: =[3]Outputs!F37 -> 37148.60481 | G178: =[3]Outputs!G37 -> 180939.3194
A179: MAR (applicable X factor), pricing period ending 2026 | C179: =[3]Outputs!C38 -> 6175.48935 | D179: =[3]Outputs!D38 -> 75899.41998 | E179: =[3]Outputs!E38 -> 65846.29061 | F179: =[3]Outputs!F38 -> 41782.01631 | G179: =[3]Outputs!G38 -> 200245.5448
A180: BBAR before tax, for the BBAR period ending 2023 | C180: =[3]Outputs!C39 -> 3798.341759 | D180: =[3]Outputs!D39 -> 61700.57114 | E180: =[3]Outputs!E39 -> 43161.89672 | F180: =[3]Outputs!F39 -> 31531.5621 | G180: =[3]Outputs!G39 -> 160646.8098
A181: BBAR before tax, for the BBAR period ending 2024 | C181: =[3]Outputs!C40 -> 5367.046337 | D181: =[3]Outputs!D40 -> 65588.34848 | E181: =[3]Outputs!E40 -> 61178.41961 | F181: =[3]Outputs!F40 -> 34136.09949 | G181: =[3]Outputs!G40 -> 170006.5532
A182: BBAR before tax, for the BBAR period ending 2025 | C182: =[3]Outputs!C41 -> 5629.703577 | D182: =[3]Outputs!D41 -> 68715.24327 | E182: =[3]Outputs!E41 -> 63774.70772 | F182: =[3]Outputs!F41 -> 36278.19765 | G182: =[3]Outputs!G41 -> 176687.994
A183: BBAR before tax, for the BBAR period ending 2026 | C183: =[3]Outputs!C42 -> 5773.181319 | D183: =[3]Outputs!D42 -> 70747.0693 | E183: =[3]Outputs!E42 -> 64810.05883 | F183: =[3]Outputs!F42 -> 37803.548 | G183: =[3]Outputs!G42 -> 181403.4735
A184: ΔD | C184: =[3]Outputs!C43 -> 0.9960710203 | D184: =[3]Outputs!D43 -> 1.02808399 | E184: =[3]Outputs!E43 -> 1.029725685 | F184: =[3]Outputs!F43 -> 1.027441951 | G184: N/A
A185: ANR 2022 (applicable X-factor) | C185: =[3]Outputs!C44 -> 4871.202881 | D185: =[3]Outputs!D44 -> 56058.56299 | E185: =[3]Outputs!E44 -> 56633.31936 | F185: =[3]Outputs!F44 -> 27802.88664 | G185: N/A
A186: source: 2022 Final, Financial Model, 'Outputs' sheet
A188: 2022 Draft DPP Reset Financial Outputs (using 2022 Final WACC 6.14%, cost of debt 4.04%)
C189: GasNet | D189: Powerco | E189: Vector | F189: First Gas Distribution | G189: First Gas Transmission
A190: Supplier number | C190: 1 | D190: 2 | E190: 3 | F190: 4 | G190: 5
A191: PV of BBAR at 30 September 2022 | C191: 19338.56716 | D191: 248860.0274 | E191: 231442.0421 | F191: 119865.3195 | G191: 628839.3797
A192: Starting price for industry-wide X factor | C192: 5233.040584 | D192: 66034.07507 | E192: 61722.15884 | F192: 32802.42354 | G192: 172631.6164
A193: Starting price for applicable X factor | C193: 4858.245953 | D193: 59171.02307 | E193: 57177.87688 | F193: 28409.60724 | G193: 149490.34
A194: PV at 30 September 2022 of MAR (applicable X) | C194: 19338.56716 | D194: 248860.0274 | E194: 231442.0421 | F194: 119865.3195 | G194: 628839.3797
A195: MAR (industry-wide X factor), pricing period ending 2023 | C195: 5233.040584 | D195: 66034.07507 | E195: 61722.15884 | F195: 32802.42354 | G195: 172631.6164
A196: MAR (industry-wide X factor), pricing period ending 2024 | C196: 5436.606864 | D196: 69545.90851 | E196: 64763.05541 | F196: 33817.00745 | G196: 176213.3016
A197: MAR (industry-wide X factor), pricing period ending 2025 | C197: 5560.563891 | D197: 72078.20896 | E197: 66903.00499 | F197: 34321.12417 | G197: 179737.5676
A198: MAR (industry-wide X factor), pricing period ending 2026 | C198: 5673.750516 | D198: 74491.38947 | E198: 68950.02784 | F198: 34747.69704 | G198: 183332.319
A199: MAR (applicable X factor), pricing period ending 2023 | C199: 4858.245953 | D199: 59171.02307 | E199: 57177.87688 | F199: 28409.60724 | G199: 149490.34
A200: MAR (applicable X factor), pricing period ending 2024 | C200: 5305.375408 | D200: 66982.75085 | E200: 63126.78612 | F200: 32217.15274 | G200: 167851.0901
A201: MAR (applicable X factor), pricing period ending 2025 | C201: 5703.872672 | D201: 74618.37654 | E201: 68616.94946 | F201: 35967.16212 | G201: 188328.9231
A202: MAR (applicable X factor), pricing period ending 2026 | C202: 6117.641432 | D202: 82889.26711 | E202: 74408.00487 | F202: 40055.61274 | G202: 211305.0517
A203: BBAR before tax, for the BBAR period ending 2023 | C203: 3793.325064 | D203: 66227.97908 | E203: 45772.51881 | F203: 31027.55103 | G203: 167530.7948
A204: BBAR before tax, for the BBAR period ending 2024 | C204: 5385.163397 | D204: 69997.32553 | E204: 65160.02506 | F204: 33536.65805 | G204: 177026.3209
A205: BBAR before tax, for the BBAR period ending 2025 | C205: 5566.84312 | D205: 71923.30098 | E205: 66430.41575 | F205: 35012.25485 | G205: 181528.8589
A206: BBAR before tax, for the BBAR period ending 2026 | C206: 5705.734754 | D206: 73945.17074 | E206: 67495.04679 | F206: 36466.78302 | G206: 186689.5658
A207: ΔD | C207: 1.001855153 | D207: 1.03050371 | E207: 1.029706844 | F207: 0.9865315951 | G207: N/A
A208: ANR 2022 (applicable X-factor) | C208: 4849.249854 | D208: 57419.51486 | E208: 55528.30616 | F208: 28797.46313 | G208: N/A
A209: source: 2022 Draft, Financial Model, 'Outputs' sheet, using 2022 final values for WACC (6.14%) and cost of debt (4.04%)
A211: 2022 Draft DPP Reset Financial Outputs (using 2022 Final Opex allowances)
C212: GasNet | D212: Powerco | E212: Vector | F212: First Gas Distribution | G212: First Gas Transmission
A213: Supplier number | C213: 1 | D213: 2 | E213: 3 | F213: 4 | G213: 5
A214: PV of BBAR at 30 September 2022 | C214: 20598.69271 | D214: 248044.0407 | E214: 230296.6574 | F214: 120300.4427 | G214: 626383.6458
A215: Starting price for industry-wide X factor | C215: 5566.484982 | D215: 65727.72641 | E215: 61333.04276 | F215: 32877.1335 | G215: 171725.5635
A216: Starting price for applicable X factor | C216: 5167.597037 | D216: 58893.02315 | E216: 56815.03421 | F216: 28472.0839 | G216: 148694.066
A217: PV at 30 September 2022 of MAR (applicable X) | C217: 20598.69271 | D217: 248044.0407 | E217: 230296.6574 | F217: 120300.4427 | G217: 626383.6458
A218: MAR (industry-wide X factor), pricing period ending 2023 | C218: 5566.484982 | D218: 65727.72641 | E218: 61333.04276 | F218: 32877.1335 | G218: 171725.5635
A219: MAR (industry-wide X factor), pricing period ending 2024 | C219: 5783.022313 | D219: 69223.26757 | E219: 64354.76855 | F219: 33894.02819 | G219: 175288.4504
A220: MAR (industry-wide X factor), pricing period ending 2025 | C220: 5914.877764 | D220: 71743.82004 | E220: 66481.22721 | F220: 34399.29307 | G220: 178794.2194
A221: MAR (industry-wide X factor), pricing period ending 2026 | C221: 6035.276534 | D221: 74145.8052 | E221: 68515.34498 | F221: 34826.8375 | G221: 182370.1038
A222: MAR (applicable X factor), pricing period ending 2023 | C222: 5167.597037 | D222: 58893.02315 | E222: 56815.03421 | F222: 28472.0839 | G222: 148694.066
... 164 more rows

Sheet Rolled over and Reset Prices
A1: Rolled over and Draft Reset Prices
A3: GasNet
A4: Year ending | B4: 2022 | C4: =B4+1 -> 2023 | D4: =C4+1 -> 2024 | E4: 2025 | F4: 2026 | G4: Starting Price | H4: NPV value
A5: MAR Y/C 2021 | B5: =Inputs!C6 -> 4383.998268
A6: CPI | C6: =Inputs!E27 -> 0.04925236518 | D6: =Inputs!F27 -> 0.03836140997 | E6: =Inputs!G27 -> 0.02248782285 | F6: =Inputs!H27 -> 0.02024771097
A7: CPRG | B7: =Inputs!D17 -> 0.001109051256 | C7: =Inputs!E17 -> 0.0007452748755 | D7: =Inputs!F17 -> 0.0005188765247 | E7: =Inputs!G17 -> 0.0003057413528 | F7: =Inputs!H17 -> 0.0001053972105
A8: WACC | B8: =Inputs!B31 -> 0.0607
A9: MAR from Draft Reset financial model | C9: =Inputs!C44 -> 4838.789014 | D9: =Inputs!C45 -> 5284.127747 | E9: =Inputs!C46 -> 5681.029058 | F9: =Inputs!C47 -> 6093.140702 | G9: =C9 -> 4838.789014 | H9: =C9+NPV(B8,D9:F9) -> 19975.74624
A10: Rolled over price path | B10: =B5 -> 4383.998268 | C10: =B10*(1+C6)*(1+C7) -> 4603.348757 | D10: =C10*(1+D6)*(1+D7) -> 4782.419904 | E10: =D10*(1+E6)*(1+E7) -> 4891.461181 | F10: =E10*(1+F6)*(1+F7) -> 4991.028058 | G10: =C10 -> 4603.348757 | H10: =C10+NPV(B8,D10:F10) -> 17641.99945
A11: Effect of moving from Draft Reset to rollover | G11: =(G9/G10)-1 -> 0.05114543129 | H11: =(H9/H10)-1 -> 0.1322835769
A13: Powerco
A14: Year ending | B14: =B4 -> 2022 | C14: =C4 -> 2023 | D14: =D4 -> 2024 | E14: =E4 -> 2025 | F14: =F4 -> 2026 | G14: Starting Price | H14: NPV value
A15: MAR Y/C 2021 | B15: =Inputs!C7 -> 51435.56862
A16: CPI | C16: =Inputs!E27 -> 0.04925236518 | D16: =Inputs!F27 -> 0.03836140997 | E16: =Inputs!G27 -> 0.02248782285 | F16: =Inputs!H27 -> 0.02024771097
A17: CPRG | B17: =Inputs!D18 -> 0.01534142993 | C17: =Inputs!E18 -> 0.01493318336 | D17: =Inputs!F18 -> 0.01427319055 | E17: =Inputs!G18 -> 0.01361786665 | F17: =Inputs!H18 -> 0.01296971087
A18: WACC | B18: =Inputs!B31 -> 0.0607
A19: MAR from Draft Reset financial model | C19: =Inputs!D44 -> 58875.07467 | D19: =Inputs!D45 -> 66647.73149 | E19: =Inputs!D46 -> 74245.16702 | F19: =Inputs!D47 -> 82474.69009 | G19: =C19 -> 58875.07467 | H19: =C19+NPV(B18,D19:F19) -> 256809.8801
A20: Rolled over price path | B20: =B15 -> 51435.56862 | C20: =B20*(1+C16)*(1+C17) -> 54774.81939 | D20: =C20*(1+D16)*(1+D17) -> 57687.86151 | E20: =D20*(1+E16)*(1+E17) -> 59788.38764 | F20: =E20*(1+F16)*(1+F17) -> 61790.10458 | G20: =C20 -> 54774.81939 | H20: =C20+NPV(B18,D20:F20) -> 214080.1745
A21: Effect of moving from Draft Reset to rollover | G21: =(G19/G20)-1 -> 0.07485657325 | H21: =(H19/H20)-1 -> 0.1995967433
A23: Vector
A24: Year ending | B24: =B14 -> 2022 | C24: =C14 -> 2023 | D24: =D14 -> 2024 | E24: =E14 -> 2025 | F24: =F14 -> 2026 | G24: Starting Price | H24: NPV value
A25: MAR Y/C 2021 | B25: =Inputs!C8 -> 50702.2772
A26: CPI | C26: =Inputs!E27 -> 0.04925236518 | D26: =Inputs!F27 -> 0.03836140997 | E26: =Inputs!G27 -> 0.02248782285 | F26: =Inputs!H27 -> 0.02024771097
A27: CPRG | B27: =Inputs!D19 -> 0.01378072768 | C27: =Inputs!E19 -> 0.01570962614 | D27: =Inputs!F19 -> 0.01050317518 | E27: =Inputs!G19 -> 0.01032279208 | F27: =Inputs!H19 -> 0.01014377539
A28: WACC | B28: =Inputs!B31 -> 0.0607
A29: MAR from Draft Reset financial model | C29: =Inputs!E44 -> 56856.01745 | D29: =Inputs!E45 -> 62771.43975 | E29: =Inputs!E46 -> 68230.69846 | F29: =Inputs!E47 -> 73989.15549 | G29: =C29 -> 56856.01745 | H29: =C29+NPV(B28,D29:F29) -> 238680.0421
A30: Rolled over price path | B30: =B25 -> 50702.2772 | C30: =B30*(1+C26)*(1+C27) -> 54035.22828 | D30: =C30*(1+D26)*(1+D27) -> 56697.40898 | E30: =D30*(1+E26)*(1+E27) -> 58570.84741 | F30: =E30*(1+F26)*(1+F27) -> 60362.93228 | G30: =C30 -> 54035.22828 | H30: =C30+NPV(B28,D30:F30) -> 210128.7235
A31: Effect of moving from Draft Reset to rollover | G31: =(G29/G30)-1 -> 0.05220278071 | H31: =(H29/H30)-1 -> 0.1358753724
A33: First Gas Distribution
A34: Year ending | B34: =B24 -> 2022 | C34: =C24 -> 2023 | D34: =D24 -> 2024 | E34: =E24 -> 2025 | F34: =F24 -> 2026 | G34: Starting Price | H34: NPV value
A35: MAR Y/C 2021 | B35: =Inputs!C9 -> 24646.15131
A36: CPI | C36: =Inputs!E27 -> 0.04925236518 | D36: =Inputs!F27 -> 0.03836140997 | E36: =Inputs!G27 -> 0.02248782285 | F36: =Inputs!H27 -> 0.02024771097
A37: CPRG | B37: =Inputs!D20 -> -0.006621538359 | C37: =Inputs!E20 -> -0.006892505495 | D37: =Inputs!F20 -> -0.007156717435 | E37: =Inputs!G20 -> -0.007413905448 | F37: =Inputs!H20 -> -0.007663666789
A38: WACC | B38: =Inputs!B31 -> 0.0607
A39: MAR from Draft Reset financial model | C39: =Inputs!F44 -> 28249.96793 | D39: =Inputs!F45 -> 32036.11807 | E39: =Inputs!F46 -> 35765.0554 | F39: =Inputs!F47 -> 39830.53218 | G39: =C39 -> 28249.96793 | H39: =C39+NPV(B38,D39:F39) -> 123617.8648
A40: Rolled over price path | B40: =B35 -> 24646.15131 | C40: =B40*(1+C36)*(1+C37) -> 25681.79214 | D40: =C40*(1+D36)*(1+D37) -> 26476.13384 | E40: =D40*(1+E36)*(1+E37) -> 26870.81872 | F40: =E40*(1+F36)*(1+F37) -> 27204.7927 | G40: =C40 -> 25681.79214 | H40: =C40+NPV(B38,D40:F40) -> 97322.64759
A41: Effect of moving from Draft Reset to rollover | G41: =(G39/G40)-1 -> 0.09999986707 | H41: =(H39/H40)-1 -> 0.2701860039
A43: First Gas Transmission
A44: Year ending | B44: =B34 -> 2022 | C44: =C34 -> 2023 | D44: 2024 | E44: 2025 | F44: 2026 | G44: Starting Price | H44: NPV value
A45: MAR Y/C 2021 | B45: =Inputs!C10 -> 131623.3864
A46: CPI | C46: =Inputs!E28 -> 0.02746210288 | D46: =Inputs!F28 -> 0.02074756236 | E46: =Inputs!G28 -> 0.02 | F46: =Inputs!H28 -> 0.02
A47: CPRG (0% used) | C47: 0 | D47: 0 | E47: 0 | F47: 0
A48: WACC | B48: =Inputs!B31 -> 0.0607
A49: Price path from Draft Reset financial model | C49: =Inputs!G44 -> 148761.8512 | D49: =Inputs!G45 -> 167033.1267 | E49: =Inputs!G46 -> 187411.1682 | F49: =Inputs!G47 -> 210275.3307 | G49: =C49 -> 148761.8512 | H49: =C49+NPV(B48,D49:F49) -> 649013.3876
A50: Rolled over price path | B50: =B45 -> 131623.3864 | C50: =B50*(1+C46)*(1+C47) -> 135238.0414 | D50: =C50*(1+D46)*(1+D47) -> 138043.9011 | E50: =D50*(1+E46)*(1+E47) -> 140804.7791 | F50: =E50*(1+F46)*(1+F47) -> 143620.8747 | G50: =C50 -> 135238.0414 | H50: =C50+NPV(B48,D50:F50) -> 510880.8696
A51: Effect of moving from Draft Reset to rollover | G51: =(G49/G50)-1 -> 0.1000000422 | H51: =(H49/H50)-1 -> 0.2703810735
A53: Rolled over and Final Reset Prices
A55: GasNet
A56: Year ending | B56: 2022 | C56: =B56+1 -> 2023 | D56: =C56+1 -> 2024 | E56: =D56+1 -> 2025 | F56: =E56+1 -> 2026 | G56: Starting Price | H56: NPV value
A57: MAR Y/C 2021 | B57: =Inputs!C6 -> 4383.998268
A58: CPI | C58: =Inputs!E161 -> 0.05214947966 | D58: =Inputs!F161 -> 0.04628530323 | E58: =Inputs!G161 -> 0.02474373522 | F58: =Inputs!H161 -> 0.02149215402
A59: CPRG | B59: =Inputs!D149 -> -0.001003335731 | C59: =Inputs!E149 -> -0.00292858236 | D59: =Inputs!F149 -> -0.003206394073 | E59: =Inputs!G149 -> -0.003464122892 | F59: =Inputs!H149 -> -0.003702911872
A60: WACC | B60: =Inputs!B156 -> 0.0614
A61: MAR from Final Reset financial model | C61: =Inputs!C176 -> 4852.064024 | D61: =Inputs!C177 -> 5338.685665 | E61: =Inputs!C178 -> 5751.684047 | F61: =Inputs!C179 -> 6175.48935 | G61: =C61 -> 4852.064024 | H61: =G61+NPV(B60,D61:F61) -> 20151.96948
A62: MAR from Draft financial model | C62: =C9 -> 4838.789014 | D62: 5284.127747 | E62: 5681.029058 | F62: 6093.140702 | G62: =C62 -> 4838.789014 | H62: =G62+NPV(B60,D62:F62) -> 19955.70744
A63: Rolled over price path | B63: =B57 -> 4383.998268 | C63: =B63*(1+C58)*(1+C59) -> 4599.113054 | D63: =C63*(1+D58)*(1+D59) -> 4796.555279 | E63: 4898.212977 | F63: 4984.958657 | G63: =C63 -> 4599.113054 | H63: =G63+NPV(B60,D63:F63) -> 17635.02331
A64: Effect of moving from Draft Reset to Final Reset | G64: =G61/G62-1 -> 0.002743456997 | H64: =H61/H62-1 -> 0.009834882814
A66: PowerCo
A67: Year ending | B67: 2022 | C67: =B67+1 -> 2023 | D67: =C67+1 -> 2024 | E67: =D67+1 -> 2025 | F67: =E67+1 -> 2026 | G67: Starting Price | H67: NPV value
A68: MAR Y/C 2021 | B68: =Inputs!C7 -> 51435.56862
A69: CPI | C69: =C58 -> 0.05214947966 | D69: =D58 -> 0.04628530323 | E69: =E58 -> 0.02474373522 | F69: =F58 -> 0.02149215402
A70: CPRG | B70: =Inputs!D150 -> 0.01365074927 | C70: =Inputs!E150 -> 0.01423886913 | D70: =Inputs!F150 -> 0.01347482345 | E70: =Inputs!G150 -> 0.01273583812 | F70: =Inputs!H150 -> 0.01202310459
A71: WACC | B71: =B60 -> 0.0614
A72: MAR from Final Reset financial model | C72: =Inputs!D176 -> 57632.91109 | D72: =Inputs!D177 -> 64168.65632 | E72: =Inputs!D178 -> 69923.58638 | F72: =Inputs!D179 -> 75899.41998 | G72: =C72 -> 57632.91109 | H72: =G72+NPV(B71,D72:F72) -> 243631.9937
A73: MAR from Draft financial model | C73: =C19 -> 58875.07467 | D73: =D19 -> 66647.73149 | E73: 74245.16702 | F73: 82474.69009 | G73: =C73 -> 58875.07467 | H73: =G73+NPV(B71,D73:F73) -> 256544.781
A74: Rolled over price path | B74: =B68 -> 51435.56862 | C74: =B74*(1+C69)*(1+C70) -> 54888.48455 | D74: =C74*(1+D69)*(1+D70) -> 58202.86053 | E74: 60402.62051 | F74: 62442.63814 | G74: =C74 -> 54888.48455 | H74: =G74+NPV(B71,D74:F74) -> 215561.671
A75: Effect of moving from Draft Reset to Final Reset | G75: =G72/G73-1 -> -0.02109829297 | H75: =H72/H73-1 -> -0.05033346318
A77: Vector
A78: Year ending | B78: 2022 | C78: =B78+1 -> 2023 | D78: =C78+1 -> 2024 | E78: =D78+1 -> 2025 | F78: =E78+1 -> 2026 | G78: Starting Price | H78: NPV value
A79: MAR Y/C 2021 | B79: =Inputs!C8 -> 50702.2772
A80: CPI | C80: =C69 -> 0.05214947966 | D80: =D69 -> 0.04628530323 | E80: =E69 -> 0.02474373522 | F80: =F69 -> 0.02149215402
A81: CPRG | B81: =Inputs!D151 -> 0.01402179604 | C81: =Inputs!E151 -> 0.01548673721 | D81: =Inputs!F151 -> 0.01032253435 | E81: =Inputs!G151 -> 0.01021189474 | F81: =Inputs!H151 -> 0.0101010024
A82: WACC | B82: =B71 -> 0.0614
A83: MAR from Final Reset financial model | C83: =Inputs!E176 -> 58316.78358 | D83: =Inputs!E177 -> 61645.83328 | E83: =Inputs!E178 -> 63816.27891 | F83: =Inputs!E179 -> 65846.29061 | G83: =C83 -> 58316.78358 | H83: =G83+NPV(B82,D83:F83) -> 228110.3865
A84: MAR from Draft financial model | C84: =C29 -> 56856.01745 | D84: =D29 -> 62771.43975 | E84: 68230.69846 | F84: 73989.15549 | G84: =C84 -> 56856.01745 | H84: =G84+NPV(B82,D84:F84) -> 238438.461
A85: Rolled over price path | B85: =B79 -> 50702.2772 | C85: =B85*(1+C80)*(1+C81) -> 54172.53586 | D85: =C85*(1+D80)*(1+D81) -> 57265.00861 | E85: 59281.21281 | F85: 61166.96293 | G85: =C85 -> 54172.53586 | H85: =G85+NPV(B82,D85:F85) -> 211899.8569
A86: Effect of moving from Draft Reset to Final Reset | G86: =G83/G84-1 -> 0.02569237506 | H86: =H83/H84-1 -> -0.04331547193
A88: First Gas Distribution
A89: Year ending | B89: 2022 | C89: =B89+1 -> 2023 | D89: =C89+1 -> 2024 | E89: =D89+1 -> 2025 | F89: =E89+1 -> 2026 | G89: Starting Price | H89: NPV value
A90: MAR Y/C 2021 | B90: =Inputs!C9 -> 24646.15131
A91: CPI | C91: =C80 -> 0.05214947966 | D91: =D80 -> 0.04628530323 | E91: =E80 -> 0.02474373522 | F91: =F80 -> 0.02149215402
A92: CPRG | B92: =Inputs!D152 -> 0.02595745483 | C92: =Inputs!E152 -> 0.001446936929 | D92: =Inputs!F152 -> 0.001283574806 | E92: =Inputs!G152 -> 0.001123060514 | F92: =Inputs!H152 -> 0.0009656319629
A93: WACC | B93: =B82 -> 0.0614
A94: MAR from Final Reset financial model | C94: =Inputs!F176 -> 28565.85208 | D94: =Inputs!F177 -> 32919.0342 | E94: =Inputs!F178 -> 37148.60481 | F94: =Inputs!F179 -> 41782.01631 | G94: =C94 -> 28565.85208 | H94: =G94+NPV(B93,D94:F94) -> 127497.8995
A95: MAR from Draft financial model | C95: =C39 -> 28249.96793 | D95: =D39 -> 32036.11807 | E95: 35765.0554 | F95: 39830.53218 | G95: =C95 -> 28249.96793 | H95: =G95+NPV(B93,D95:F95) -> 123490.0378
A96: Rolled over price path | B96: =B90 -> 24646.15131 | C96: =B96*(1+C91)*(1+C92) -> 25968.95642 | D96: =C96*(1+D91)*(1+D92) -> 27205.81338 | E96: 27910.29661 | F96: 28537.67932 | G96: =C96 -> 25968.95642 | H96: =G96+NPV(B93,D96:F96) -> 100241.6407
A97: Effect of moving from Draft Reset to Final Reset | G97: =G94/G95-1 -> 0.01118175241 | H97: =H94/H95-1 -> 0.03245493956
A99: First Gas Transmission
A100: Year ending | B100: 2022 | C100: =B100+1 -> 2023 | D100: =C100+1 -> 2024 | E100: =D100+1 -> 2025 | F100: =E100+1 -> 2026 | G100: Starting Price | H100: NPV value
A101: MAR Y/C 2021 | B101: =Inputs!C10 -> 131623.3864
A102: CPI | C102: =C46 -> 0.02746210288 | D102: =D46 -> 0.02074756236 | E102: 0.02 | F102: 0.02
A103: CPRG (0% used) | B103: 0 | C103: 0 | D103: 0 | E103: 0 | F103: 0
A104: WACC | B104: =B93 -> 0.0614
A105: MAR from Final Reset financial model | C105: =TRANSPOSE(Inputs!G176:G179) -> 147227.2812 | D105: 163454.7199 | E105: 180939.3194 | F105: 200245.5448 | G105: =C105 -> 147227.2812 | H105: =G105+NPV(B104,D105:F105) -> 629302.868
A106: MAR from Draft financial model | C106: =C49 -> 148761.8512 | D106: =D49 -> 167033.1267 | E106: 187411.1682 | F106: 210275.3307 | G106: =C106 -> 148761.8512 | H106: =G106+NPV(B104,D106:F106) -> 648341.5009
A107: Rolled over price path | B107: =B101 -> 131623.3864 | C107: =B107*(1+C102)*(1+C103) -> 135238.0414 | D107: =C107*(1+D102)*(1+D103) -> 138043.9011 | E107: 140804.7791 | F107: 143620.8747 | G107: =C107 -> 135238.0414 | H107: =G107+NPV(B104,D107:F107) -> 510392.0639
A108: Effect of moving from Draft Reset to Final Reset | G108: =G105/G106-1 -> -0.01031561524 | H108: =H105/H106-1 -> -0.0293651307

Sheet Impact of 2022 Reset
A1: Impact of 2022 Reset
A3: Draft Reset compared to Roll Over
A4: These tables are used to generate the Roll Over to Draft section in the Waterfall Chart
B6: Starting Price (MAR y/c 2022)
B7: Roll over | C7: Draft Reset | D7: Change
A8: GasNet | B8: ='Rolled over and Reset Prices'!C10 -> 4603.348757 | C8: ='Rolled over and Reset Prices'!C9 -> 4838.789014 | D8: =C8/B8-1 -> 0.05114543129
A9: Powerco | B9: ='Rolled over and Reset Prices'!C20 -> 54774.81939 | C9: ='Rolled over and Reset Prices'!C19 -> 58875.07467 | D9: =C9/B9-1 -> 0.07485657325
A10: Vector | B10: ='Rolled over and Reset Prices'!C30 -> 54035.22828 | C10: ='Rolled over and Reset Prices'!C29 -> 56856.01745 | D10: 0.05220278071
A11: First Gas Distribution | B11: ='Rolled over and Reset Prices'!C40 -> 25681.79214 | C11: ='Rolled over and Reset Prices'!C39 -> 28249.96793 | D11: 0.09999986707
A12: First Gas Transmission (MAR) | B12: ='Rolled over and Reset Prices'!C50 -> 135238.0414 | C12: ='Rolled over and Reset Prices'!C49 -> 148761.8512 | D12: 0.1000000422
A13: Industry Total | B13: =SUM(B8:B12) -> 274333.2299 | C13: =SUM(C8:C12) -> 297581.7003 | D13: 0.08474536737
B15: NPV MAR
B16: Roll over | C16: Draft Reset | D16: Change
A17: GasNet | B17: ='Rolled over and Reset Prices'!H10 -> 17641.99945 | C17: ='Rolled over and Reset Prices'!H9 -> 19975.74624 | D17: =C17/B17-1 -> 0.1322835769
A18: Powerco | B18: ='Rolled over and Reset Prices'!H20 -> 214080.1745 | C18: ='Rolled over and Reset Prices'!H19 -> 256809.8801 | D18: 0.1995967433
A19: Vector | B19: ='Rolled over and Reset Prices'!H30 -> 210128.7235 | C19: ='Rolled over and Reset Prices'!H29 -> 238680.0421 | D19: 0.1358753724
A20: First Gas Distribution | B20: ='Rolled over and Reset Prices'!H40 -> 97322.64759 | C20: ='Rolled over and Reset Prices'!H39 -> 123617.8648 | D20: 0.2701860039
A21: First Gas Transmission (MAR) | B21: ='Rolled over and Reset Prices'!H50 -> 510880.8696 | C21: ='Rolled over and Reset Prices'!H49 -> 649013.3876 | D21: 0.2703810735
A22: Industry Total | B22: =SUM(B17:B21) -> 1050054.415 | C22: =SUM(C17:C21) -> 1288096.921 | D22: 0.2266954006
A24: Draft Reset compared to Roll Over: WACC, Cost of Debt, and Leverage Change
B26: Starting Price (MAR)
B27: Rolled over Starting Price | C27: Draft decision | D27: WACC at 6.41%, cost of debt at 4.76%, leverage at 42% | E27: Impact of reset
A28: GasNet | B28: ='Rolled over and Reset Prices'!G10 -> 4603.348757 | C28: ='Rolled over and Reset Prices'!G9 -> 4838.789014 | D28: =Inputs!C67 -> 4912.646298 | E28: =C28-D28 -> -73.85728351
A29: Powerco | B29: ='Rolled over and Reset Prices'!G20 -> 54774.81939 | C29: ='Rolled over and Reset Prices'!G19 -> 58875.07467 | D29: =Inputs!D67 -> 60000.2746 | E29: =C29-D29 -> -1125.199937
A30: Vector | B30: ='Rolled over and Reset Prices'!G30 -> 54035.22828 | C30: ='Rolled over and Reset Prices'!G29 -> 56856.01745 | D30: =Inputs!E67 -> 58073.03392 | E30: -1217.016469
A31: First Gas Distribution | B31: ='Rolled over and Reset Prices'!G40 -> 25681.79214 | C31: ='Rolled over and Reset Prices'!G39 -> 28249.96793 | D31: =Inputs!F67 -> 28858.14698 | E31: -608.1790479
A32: First Gas Transmission (MAR) | B32: ='Rolled over and Reset Prices'!G50 -> 135238.0414 | C32: ='Rolled over and Reset Prices'!G49 -> 148761.8512 | D32: =Inputs!G67 -> 151532.558 | E32: -2770.70676
A33: Industry Total | B33: =SUM(B28:B32) -> 274333.2299 | C33: =SUM(C28:C32) -> 297581.7003 | D33: =SUM(D28:D32) -> 303376.6598 | E33: =C33-D33 -> -5794.959497
A35: Draft Reset compared to Roll Over: Opex allowances
B37: 2017 DPP Operating Expenditure Allowance for 2022 | C37: 2022 Draft DPP Reset Operating Expenditure Allowance for 2023 | D37: Impact of reset
A38: GasNet | B38: =Inputs!C138 -> 1782.748816 | C38: =Inputs!C128 -> 2030.51322 | D38: =C38-B38 -> 247.7644045
A39: Powerco | B39: =Inputs!D138 -> 18435.52952 | C39: =Inputs!D128 -> 18350 | D39: =C39-B39 -> -85.52952214
A40: Vector | B40: =Inputs!E138 -> 13208.87932 | C40: =Inputs!E128 -> 14227.75 | D40: 1018.870685
A41: First Gas Distribution | B41: =Inputs!F138 -> 7883.421218 | C41: =Inputs!F128 -> 9460.172589 | D41: 1576.751371
A42: First Gas Transmission | B42: =Inputs!G138 -> 47131.84076 | C42: =Inputs!G128 -> 49274 | D42: 2142.159242
A43: Industry Total | B43: =SUM(B38:B42) -> 88442.41963 | C43: =SUM(C38:C42) -> 93342.43581 | D43: 4900.01618
A45: Draft Reset compared to Roll Over: Capex allowances
B47: 2017 DPP Capital Expenditure Allowance for 2022 | C47: 2022 Draft DPP Reset Capital Expenditure Allowance for 2023 | D47: Impact of reset
A48: GasNet | B48: =Inputs!C143 -> 892.5384701 | C48: =Inputs!C133 -> 888.7230001 | D48: =C48-B48 -> -3.815470041
A49: PowerCo | B49: =Inputs!D143 -> 14350.82414 | C49: =Inputs!D133 -> 16872.16864 | D49: =C49-B49 -> 2521.344504
A50: Vector | B50: =Inputs!E143 -> 18641.42915 | C50: =Inputs!E133 -> 5662.147083 | D50: -12979.28206
A51: First Gas Distribution | B51: =Inputs!F143 -> 11805.55703 | C51: =Inputs!F133 -> 12890.53495 | D51: 1084.977915
A52: First Gas Transmission | B52: =Inputs!G143 -> 24115.05082 | C52: =Inputs!G133 -> 52148.56991 | D52: 28033.51909
A53: Industry Total | B53: =SUM(B48:B52) -> 69805.39961 | C53: =SUM(C48:C52) -> 88462.14358 | D53: 18656.74397
A55: Draft Reset: Accelerated depreciation
B56: 2022 Draft DPP Reset with no allowance made for accelerated depreciation (Starting price, MAR) | C56: 2022 Draft DPP Reset with accelerated depreciation, no smoothing (Starting price, MAR) | D56: Impact of accelerated depreciation
A57: GasNet | B57: =Inputs!C90 -> 4543.725582 | C57: =Inputs!C113 -> 5212.296196 | D57: =C57-B57 -> 668.5706143
A58: PowerCo | B58: =Inputs!D90 -> 61697.05595 | C58: =Inputs!D113 -> 65707.69495 | D58: =C58-B58 -> 4010.638999
A59: Vector | B59: =Inputs!E90 -> 50136.88637 | C59: =Inputs!E113 -> 61377.28504 | D59: 11240.39868
A60: First Gas Distribution | B60: =Inputs!F90 -> 30685.09575 | C60: =Inputs!F113 -> 32620.65293 | D60: 1935.557176
A61: First Gas Transmission | B61: =Inputs!G90 -> 149092.7884 | C61: =Inputs!G113 -> 171803.8482 | D61: 22711.05982
A62: Industry Total | B62: =SUM(B57:B61) -> 296155.552 | C62: =SUM(C57:C61) -> 336721.7773 | D62: 40566.22528
A64: Draft Reset: Smoothing
B65: 2022 Draft DPP Reset with accelerated depreciation, no smoothing | C65: 2022 Draft DPP Reset, with accelerated depreciation and smoothing | D65: Impact of smoothing
A66: GasNet | B66: =C57 -> 5212.296196 | C66: =Inputs!C44 -> 4838.789014 | D66: =C66-B66 -> -373.5071817
A67: PowerCo | B67: =C58 -> 65707.69495 | C67: =Inputs!D44 -> 58875.07467 | D67: =C67-B67 -> -6832.620284
A68: Vector | B68: 61377.28504 | C68: =Inputs!E44 -> 56856.01745 | D68: -4521.267593
A69: First Gas Distribution | B69: 32620.65293 | C69: =Inputs!F44 -> 28249.96793 | D69: -4370.68499
A70: First Gas Transmission | B70: 171803.8482 | C70: =Inputs!G44 -> 148761.8512 | D70: -23041.99697
A71: Industry Total | B71: 336721.7773 | C71: =SUM(C66:C70) -> 297581.7003 | D71: -39140.07701
A74: iii) Final Reset compared to Draft Reset
A75: These tables are used to generate the Draft to Final section in the Waterfall Chart
B77: Starting Price (MAR 2023)
B78: Final Reset | C78: Draft Reset | D78: Change | E78: Roll over | F78: Change
A79: GasNet | B79: ='Rolled over and Reset Prices'!C61 -> 4852.064024 | C79: =C8 -> 4838.789014 | D79: =B79/C79-1 -> 0.002743456997 | E79: 4603.348757 | F79: =B79/E79-1 -> 0.05402920358
A80: Powerco | B80: ='Rolled over and Reset Prices'!C72 -> 57632.91109 | C80: =C9 -> 58875.07467 | D80: -0.02109829297 | E80: 54774.81939 | F80: =B80/E80-1 -> 0.05217893436
A81: Vector | B81: ='Rolled over and Reset Prices'!C83 -> 58316.78358 | C81: =C10 -> 56856.01745 | D81: 0.02569237506 | E81: 54035.22828 | F81: 0.07923636919
A82: First Gas Distribution | B82: ='Rolled over and Reset Prices'!C94 -> 28565.85208 | C82: =C11 -> 28249.96793 | D82: 0.01118175241 | E82: 25681.79214 | F82: 0.1122997932
A83: First Gas Transmission (MAR) | B83: ='Rolled over and Reset Prices'!C105 -> 147227.2812 | C83: =C12 -> 148761.8512 | D83: -0.01031561524 | E83: 135238.0414 | F83: 0.088652865
A84: Industry Total | B84: =SUM(B79:B83) -> 296594.892 | C84: =SUM(C79:C83) -> 297581.7003 | D84: -0.003316092054 | E84: 274333.2299 | F84: 0.08114825188
B86: NPV MAR
B87: Final Reset | C87: Draft Reset | D87: Change
A88: GasNet | B88: ='Rolled over and Reset Prices'!H61 -> 20151.96948 | C88: =C17 -> 19975.74624 | D88: =B88/C88-1 -> 0.008821860418
A89: Powerco | B89: ='Rolled over and Reset Prices'!H72 -> 243631.9937 | C89: =C18 -> 256809.8801 | D89: -0.05131378276
A90: Vector | B90: ='Rolled over and Reset Prices'!H83 -> 228110.3865 | C90: =C19 -> 238680.0421 | D90: -0.04428378455
A91: First Gas Distribution | B91: ='Rolled over and Reset Prices'!H94 -> 127497.8995 | C91: =C20 -> 123617.8648 | D91: 0.03138732963
A92: First Gas Transmission (MAR) | B92: ='Rolled over and Reset Prices'!H105 -> 629302.868 | C92: =C21 -> 649013.3876 | D92: -0.03036997381
A93: Industry Total | B93: =SUM(B88:B92) -> 1248695.117 | C93: =SUM(C88:C92) -> 1288096.921 | D93: -0.03058916063
A95: Final Reset compared to Draft Reset: WACC, Cost of Debt
B97: Starting Price (MAR)
B98: Final Reset | C98: Draft Reset | D98: WACC at 6.14%, cost of debt at 4.04% | E98: Impact of Final Decision | F98: Impact of WACC, cost of debt | G98: Impact of WACC, cost of debt
A99: GasNet | B99: =B79 -> 4852.064024 | C99: =C28 -> 4838.789014 | D99: =Inputs!C199 -> 4858.245953 | E99: =C99/B99-1 -> -0.002735951033 | F99: =D99-C99 -> 19.45693828 | G99: =D99/B99-1 -> 0.001274082262
A100: Powerco | B100: =B80 -> 57632.91109 | C100: =C29 -> 58875.07467 | D100: =Inputs!D199 -> 59171.02307 | E100: 0.021553025 | F100: =D100-C100 -> 295.9484053 | G100: 0.02668808412
A101: Vector | B101: =B81 -> 58316.78358 | C101: =C30 -> 56856.01745 | D101: =Inputs!E199 -> 57177.87688 | E101: -0.0250488116 | F101: 321.8594281 | G101: -0.01952965556
A102: First Gas Distribution | B102: =B82 -> 28565.85208 | C102: =C31 -> 28249.96793 | D102: =Inputs!F199 -> 28409.60724 | E102: -0.01105810343 | F102: 159.6393041 | G102: -0.005469637046
A103: First Gas Transmission (MAR) | B103: =B83 -> 147227.2812 | C103: =C32 -> 148761.8512 | D103: =Inputs!G199 -> 149490.34 | E103: 0.0104231363 | F103: 728.488732 | G103: 0.01537119162
A104: Industry Total | B104: =SUM(B99:B103) -> 296594.892 | C104: =SUM(C99:C103) -> 297581.7003 | D104: =SUM(D99:D103) -> 299107.0931 | E104: 0.003327125107 | F104: 1525.392808 | G104: 0.008470142904
A106: Final Reset compared to Draft Reset: Opex Allowances
B108: Starting Price (MAR)
B109: Final Reset | C109: Draft Reset | D109: Final Opex allowances | E109: Impact of Final Decision | F109: Impact of Final Opex allowances | G109: Impact of Final Opex allowances
A110: GasNet | B110: =B79 -> 4852.064024 | C110: =C28 -> 4838.789014 | D110: =Inputs!C222 -> 5167.597037 | E110: =C110/B110-1 -> -0.002735951033 | F110: =D110-C110 -> 328.8080228 | G110: =D110/B110-1 -> 0.06503067801
A111: Powerco | B111: =B80 -> 57632.91109 | C111: =C29 -> 58875.07467 | D111: =Inputs!D222 -> 58893.02315 | E111: 0.021553025 | F111: =D111-C111 -> 17.94848259 | G111: 0.02186445266
A112: Vector | B112: =B81 -> 58316.78358 | C112: =C30 -> 56856.01745 | D112: =Inputs!E222 -> 56815.03421 | E112: -0.0250488116 | F112: -40.98324298 | G112: -0.02575158086
A113: First Gas Distribution | B113: 28565.85208 | C113: =C31 -> 28249.96793 | D113: =Inputs!F222 -> 28472.0839 | E113: -0.01105810343 | F113: 222.1159697 | G113: -0.003282526875
A114: First Gas Transmission | B114: 147227.2812 | C114: =C32 -> 148761.8512 | D114: =Inputs!G222 -> 148694.066 | E114: 0.0104231363 | F114: -67.78527562 | G114: 0.009962723834
A115: Industry Total | B115: =SUM(B110:B114) -> 296594.892 | C115: =SUM(C110:C114) -> 297581.7003 | D115: =SUM(D110:D114) -> 298041.8043 | E115: 0.003327125107 | F115: 460.1039565 | G115: 0.004878412634
A117: Final Reset compared to Draft Reset: Capex Allowances
B119: Starting Price (MAR)
B120: Final Reset | C120: Draft Reset | D120: Final Capex allowances | E120: Impact of Final Decision | F120: Impact of Final Capex allowances | G120: Impact of Final Capex allowances
A121: GasNet | B121: =B79 -> 4852.064024 | C121: =C28 -> 4838.789014 | D121: =Inputs!C245 -> 4854.223908 | E121: =C121/B121-1 -> -0.002735951033 | F121: =D121-C121 -> 15.43489363 | G121: =D121/B121-1 -> 0.000445147476
A122: Powerco | B122: =B80 -> 57632.91109 | C122: =C29 -> 58875.07467 | D122: =Inputs!D245 -> 58763.03828 | E122: =C122/B122-1 -> 0.021553025 | F122: =D122-C122 -> -112.0363836 | G122: 0.01960905963
A123: Vector | B123: 58316.78358 | C123: =C30 -> 56856.01745 | D123: =Inputs!E245 -> 56927.94292 | E123: -0.0250488116 | F123: 71.92547286 | G123: -0.02381545357
A124: First Gas Distribution | B124: 28565.85208 | C124: =C31 -> 28249.96793 | D124: =Inputs!F245 -> 27802.32103 | E124: -0.01105810343 | F124: -447.6469093 | G124: -0.02672880382
A125: First Gas Transmission | B125: 147227.2812 | C125: =C32 -> 148761.8512 | D125: =Inputs!G245 -> 146646.5548 | E125: 0.0104231363 | F125: -2115.296398 | G125: -0.003944420996
A126: Industry Total | B126: =SUM(B121:B125) -> 296594.892 | C126: =SUM(C121:C125) -> 297581.7003 | D126: =SUM(D121:D125) -> 294994.081 | E126: 0.003327125107 | F126: -2587.619325 | G126: -0.005397297985
A128: Final Reset compared to Draft Reset: CPI Forecast
B130: Starting Price (MAR)
B131: Final Reset | C131: Draft Reset | D131: Final CPI forecast | E131: Impact of Final Decision | F131: Impact of Final CPI | G131: Impact of Final CPI
A132: GasNet | B132: =B79 -> 4852.064024 | C132: =C28 -> 4838.789014 | D132: =TRANSPOSE(Inputs!C268:'Inputs'!G268) -> 4819.086766 | E132: =C132/B132-1 -> -0.002735951033 | F132: =D132-C132 -> -19.70224784 | G132: =D132/B132-1 -> -0.006796542102
A133: Powerco | B133: =B80 -> 57632.91109 | C133: =C29 -> 58875.07467 | D133: 58523.7078 | E133: 0.021553025 | F133: =D133-C133 -> -351.366868 | G133: 0.01545638922
A134: Vector | B134: 58316.78358 | C134: =C30 -> 56856.01745 | D134: 56676.83578 | E134: -0.0250488116 | F134: -179.1816734 | G134: -0.02812136914
A135: First Gas Distribution | B135: 28565.85208 | C135: =C31 -> 28249.96793 | D135: 28025.69156 | E135: -0.01105810343 | F135: -224.2763764 | G135: -0.01890930898
A136: First Gas Transmission | B136: 147227.2812 | C136: =C32 -> 148761.8512 | D136: 148599.2993 | E136: 0.0104231363 | F136: -162.5518958 | G136: 0.009319048155
A137: Industry Total | B137: =SUM(B132:B136) -> 296594.892 | C137: =SUM(C132:C136) -> 297581.7003 | D137: =SUM(D132:D136) -> 296644.6212 | E137: 0.003327125107 | F137: -937.0790615 | G137: 0.0001676672517
A139: Final Reset compared to Draft Reset: Accelerated depreciation
B141: Starting Price (MAR)
B142: Final Reset | C142: Draft Reset | D142: Final accelerated depreciation | E142: Impact of Final Decision | F142: Impact of Final accelerated depreciation | G142: Impact of Final accelerated depreciation
A143: GasNet | B143: =B132 -> 4852.064024 | C143: =C132 -> 4838.789014 | D143: =TRANSPOSE(Inputs!C314:G314) -> 4533.124898 | E143: =C143/B143-1 -> -0.002735951033 | F143: =D143-C143 -> -305.6641162 | G143: =D143/B143-1 -> -0.06573267051
A144: Powerco | B144: =B133 -> 57632.91109 | C144: 58875.07467 | D144: 55745.6239 | E144: 0.021553025 | F144: =D144-C144 -> -3129.45077 | G144: -0.03274669212
A145: Vector | B145: 58316.78358 | C145: 56856.01745 | D145: 53821.01205 | E145: -0.0250488116 | F145: =D145-C145 -> -3035.005405 | G145: -0.07709224093
A146: First Gas Distribution | B146: 28565.85208 | C146: 28249.96793 | D146: 28826.84495 | E146: -0.01105810343 | F146: 576.8770195 | G146: 0.009136533783
A147: First Gas Transmission (MAR) | B147: 147227.2812 | C147: 148761.8512 | D147: 144913.1122 | E147: 0.0104231363 | F147: -3848.739081 | G147: -0.01571834406
A148: Industry Total | B148: =SUM(B143:B147) -> 296594.892 | C148: =SUM(C143:C147) -> 297581.7003 | D148: =SUM(D143:D147) -> 287839.7179 | E148: 0.003327125107 | F148: =D148-C148 -> -9741.982352 | G148: -0.02951896434
A150: Final Reset compared to Draft Reset: Smoothing
B152: Starting Price (MAR)
B153: Final Reset | C153: Draft Reset | D153: Final smoothing | E153: Impact of Final Decision | F153: Impact of final smoothing | G153: Impact of final smoothing
A154: GasNet | B154: =B143 -> 4852.064024 | C154: =C143 -> 4838.789014 | D154: =TRANSPOSE(Inputs!C337:G337) -> 4811.871293 | E154: =C154/B154-1 -> -0.002735951033 | F154: =D154-C154 -> -26.91772143 | G154: =D154/B154-1 -> -0.008283635749
A155: Powerco | B155: =B144 -> 57632.91109 | C155: 58875.07467 | D155: 61051.35293 | E155: 0.021553025 | F155: =D155-C155 -> 2176.278258 | G155: 0.05931405801
A156: Vector | B156: 58316.78358 | C156: 56856.01745 | D156: 61377.28504 | E156: -0.0250488116 | F156: =D156-C156 -> 4521.267593 | G156: 0.05248062874
A157: First Gas Distribution | B157: 28565.85208 | C157: 28249.96793 | D157: 28249.96793 | E157: -0.01105810343 | F157: 0 | G157: -0.01105810343
A158: First Gas Transmission (MAR) | B158: 147227.2812 | C158: 148761.8512 | D158: 151986.4683 | E158: 0.0104231363 | F158: 3224.617057 | G158: 0.03232544293
A159: Industry Total | B159: =SUM(B154:B158) -> 296594.892 | C159: =SUM(C154:C158) -> 297581.7003 | D159: =SUM(D154:D158) -> 307476.9455 | E159: 0.003327125107 | F159: 9895.245186 | G159: 0.03668995587
A161: Final Reset compared to Draft Reset: CPRG
B162: Starting Price (MAR)
B163: Final Reset | C163: Draft Reset | D163: Final CPRG | E163: Impact of Final Decision | F163: Impact of final CPRG | G163: Impact of final CPRG
A164: GasNet | B164: =B154 -> 4852.064024 | C164: 4838.789014 | D164: =TRANSPOSE(Inputs!C360:G360) -> 4866.509819 | E164: =C164/B164-1 -> -0.002735951033 | F164: =D164-C164 -> 27.72080474 | G164: =D164/B164-1 -> 0.002977247434
A165: Powerco | B165: 57632.91109 | C165: 58875.07467 | D165: 58952.60677 | E165: 0.021553025 | F165: =D165-C165 -> 77.53210439 | G165: =D165/B165-1 -> 0.02289829983
A166: Vector | B166: 58316.78358 | C166: 56856.01745 | D166: 56867.59387 | E166: -0.0250488116 | F166: 11.57641519 | G166: -0.02485030245
A167: First Gas Distribution | B167: 28565.85208 | C167: 28249.96793 | D167: 27873.15069 | E167: -0.01105810343 | F167: -376.8172487 | G167: -0.02424928175
A168: First Gas Transmission (MAR) | B168: 147227.2812 | C168: 148761.8512 | D168: 148761.8512 | E168: 0.0104231363 | F168: 0 | G168: 0.0104231363
A169: Industry Total | B169: 296594.892 | C169: 297581.7003 | D169: =SUM(_xlfn.ANCHORARRAY(D164)) -> 297321.7124 | E169: 0.003327125107 | F169: -259.9879244 | G169: 0.002450549241
A171: Final Reset compared to Draft Reset: Initial Conditions
B172: Starting Price (MAR)
B173: Final Reset | C173: Draft Reset | D173: Final initial conditions | E173: Impact of Final Decision | F173: Impact of final initial conditions | G173: Impact of final initial conditions
A174: GasNet | B174: =B164 -> 4852.064024 | C174: =C164 -> 4838.789014 | D174: =TRANSPOSE(Inputs!C383:G383) -> 4833.721516 | E174: =C174/B174-1 -> -0.002735951033 | F174: =D174-C174 -> -5.06749852 | G174: =D174/B174-1 -> -0.003780351621
A175: Powerco | B175: =B165 -> 57632.91109 | C175: 58875.07467 | D175: 58669.40938 | E175: 0.021553025 | F175: =D175-C175 -> -205.6652835 | G175: 0.01798448613
A176: Vector | B176: =B166 -> 58316.78358 | C176: 56856.01745 | D176: 56864.54927 | E176: -0.0250488116 | F176: 8.531817421 | G176: -0.02490251036
A177: First Gas Distribution | B177: =B167 -> 28565.85208 | C177: 28249.96793 | D177: 28159.92005 | E177: -0.01105810343 | F177: -90.04788155 | G177: -0.01421039454
A178: First Gas Transmission (MAR) | B178: =B168 -> 147227.2812 | C178: 148761.8512 | D178: 148443.2866 | E178: 0.0104231363 | F178: -318.5646753 | G178: 0.008259375123
A179: Industry Total | B179: =B169 -> 296594.892 | C179: 297581.7003 | D179: =SUM(_xlfn.ANCHORARRAY(D174)) -> 296970.8868 | E179: 0.003327125107 | F179: -610.8135214 | G179: 0.001267704875

Sheet Waterfall Chart for Final
A1: Figures for Waterfall Chart
A4: Industry Total | B4: Cumulative | C4: Incremental | E4: Notes
A6: Rolled over starting price | B6: ='Impact of 2022 Reset'!B13 -> 274333.2299
A7: WACC | B7: =B6-C7 -> 280128.1894 | C7: ='Impact of 2022 Reset'!E33 -> -5794.959497
A8: Opex | B8: =B7-C8 -> 275228.1733 | C8: ='Impact of 2022 Reset'!D43 -> 4900.01618
A9: Capex | B9: =B8-C9 -> 256571.4293 | C9: ='Impact of 2022 Reset'!D53 -> 18656.74397
A10: Shortened asset lives | B10: =B9-C10 -> 216005.204 | C10: ='Impact of 2022 Reset'!D62 -> 40566.22528
A11: Smoothing | B11: =B10-C11 -> 255145.281 | C11: ='Impact of 2022 Reset'!D71 -> -39140.07701
A12: Other | C12: =-(B6-B13)-C7-C8-C9-C10-C11 -> 4060.521428 | E12: calculated as the residual (representing all other changes)
A13: Draft Reset starting price | B13: ='Impact of 2022 Reset'!C13 -> 297581.7003
A14: WACC | B14: =B13-C14 -> 296056.3075 | C14: ='Impact of 2022 Reset'!F104 -> 1525.392808
A15: Opex | B15: =B14-C15 -> 295596.2035 | C15: ='Impact of 2022 Reset'!F115 -> 460.1039565
A16: Capex | B16: 298183.8229 | C16: ='Impact of 2022 Reset'!F126 -> -2587.619325
A17: CPI forecast | B17: 299120.9019 | C17: ='Impact of 2022 Reset'!F137 -> -937.0790615
A18: Shortened asset lives with DY2021 data | B18: =B17-C18 -> 308862.8843 | C18: ='Impact of 2022 Reset'!F148 -> -9741.982352
A19: Smoothing | B19: 298967.6391 | C19: ='Impact of 2022 Reset'!F159 -> 9895.245186
A20: CPRG | B20: =B19-C20 -> 299227.627 | C20: ='Impact of 2022 Reset'!F169 -> -259.9879244
A21: Other | C21: =-(B13-B22)-SUM(C14:C20) -> 659.1184006 | E21: calculated as the residual (representing all other changes)
A22: Final Reset starting price | B22: ='Impact of 2022 Reset'!B84 -> 296594.892
A24: GasNet | B24: Cumulative | C24: Incremental | E24: Notes
A25: Rolled over starting price | B25: ='Impact of 2022 Reset'!B8 -> 4603.348757
A26: WACC | B26: =B25-C26 -> 4677.20604 | C26: ='Impact of 2022 Reset'!E28 -> -73.85728351
A27: Opex | B27: =B26-C27 -> 4429.441636 | C27: ='Impact of 2022 Reset'!D38 -> 247.7644045
A28: Capex | B28: =B27-C28 -> 4433.257106 | C28: ='Impact of 2022 Reset'!D48 -> -3.815470041
A29: Shortened asset lives | B29: =B28-C29 -> 3764.686492 | C29: ='Impact of 2022 Reset'!D57 -> 668.5706143
A30: Smoothing | B30: =B29-C30 -> 4138.193673 | C30: ='Impact of 2022 Reset'!D66 -> -373.5071817
A31: Other | C31: =-(B25-B32)-C26-C27-C28-C29-C30 -> -229.7148259 | E31: calculated as the residual (representing all other changes)
A32: Draft Reset starting price | B32: ='Impact of 2022 Reset'!C8 -> 4838.789014
A33: WACC | B33: =B32-C33 -> 4819.332076 | C33: ='Impact of 2022 Reset'!F99 -> 19.45693828
A34: Opex | B34: =B33-C34 -> 4490.524053 | C34: ='Impact of 2022 Reset'!F110 -> 328.8080228
A35: Capex | B35: 4475.08916 | C35: ='Impact of 2022 Reset'!F121 -> 15.43489363
A36: CPI forecast | B36: 4494.791407 | C36: ='Impact of 2022 Reset'!F132 -> -19.70224784
A37: Shortened asset lives with DY2021 data | B37: =B36-C37 -> 4800.455524 | C37: ='Impact of 2022 Reset'!F143 -> -305.6641162
A38: Smoothing | B38: 4827.373245 | C38: ='Impact of 2022 Reset'!F154 -> -26.91772143
A39: CPRG | B39: =B38-C39 -> 4799.65244 | C39: ='Impact of 2022 Reset'!F164 -> 27.72080474
A40: Other | C40: =-(B32-B41)-SUM(C33:C39) -> -25.86156443 | E40: calculated as the residual (representing all other changes)
A41: Final Reset starting price | B41: ='Impact of 2022 Reset'!B79 -> 4852.064024
A43: PowerCo | B43: Cumulative | C43: Incremental | E43: Notes
A45: Rolled over starting price | B45: ='Impact of 2022 Reset'!B9 -> 54774.81939
A46: WACC | B46: =B45-C46 -> 55900.01932 | C46: ='Impact of 2022 Reset'!E29 -> -1125.199937
A47: Opex | B47: =B46-C47 -> 55985.54885 | C47: ='Impact of 2022 Reset'!D39 -> -85.52952214
A48: Capex | B48: =B47-C48 -> 53464.20434 | C48: ='Impact of 2022 Reset'!D49 -> 2521.344504
A49: Shortened asset lives | B49: =B48-C49 -> 49453.56534 | C49: ='Impact of 2022 Reset'!D58 -> 4010.638999
A50: Smoothing | B50: =B49-C50 -> 56286.18563 | C50: ='Impact of 2022 Reset'!D67 -> -6832.620284
A51: Other | C51: =-(B45-B52)-C46-C47-C48-C49-C50 -> 5611.621519 | E51: calculated as the residual (representing all other changes)
A52: Draft Reset starting price | B52: ='Impact of 2022 Reset'!C9 -> 58875.07467
A53: WACC | B53: =B52-C53 -> 58579.12626 | C53: ='Impact of 2022 Reset'!F100 -> 295.9484053
A54: Opex | B54: =B53-C54 -> 58561.17778 | C54: ='Impact of 2022 Reset'!F111 -> 17.94848259
A55: Capex | B55: 58673.21416 | C55: ='Impact of 2022 Reset'!F122 -> -112.0363836
A56: CPI forecast | B56: 59024.58103 | C56: ='Impact of 2022 Reset'!F133 -> -351.366868
A57: Shortened asset lives with DY2021 data | B57: =B56-C57 -> 62154.0318 | C57: ='Impact of 2022 Reset'!F144 -> -3129.45077
A58: Smoothing | B58: 59977.75354 | C58: ='Impact of 2022 Reset'!F155 -> 2176.278258
A59: CPRG | C59: ='Impact of 2022 Reset'!F165 -> 77.53210439
A60: Other | C60: =-(B52-B61)-SUM(C53:C59) -> -217.0168027 | E60: calculated as the residual (representing all other changes)
A61: Final Reset starting price | B61: ='Impact of 2022 Reset'!B80 -> 57632.91109
A63: Vector | B63: Cumulative | C63: Incremental | E63: Notes
A65: Rolled over starting price | B65: ='Impact of 2022 Reset'!B10 -> 54035.22828
A66: WACC | B66: =B65-C66 -> 55252.24475 | C66: ='Impact of 2022 Reset'!E30 -> -1217.016469
A67: Opex | B67: =B66-C67 -> 54233.37406 | C67: ='Impact of 2022 Reset'!D40 -> 1018.870685
A68: Capex | B68: 67212.65613 | C68: ='Impact of 2022 Reset'!D50 -> -12979.28206
A69: Shortened asset lives | B69: 55972.25745 | C69: ='Impact of 2022 Reset'!D59 -> 11240.39868
A70: Smoothing | B70: 60493.52504 | C70: ='Impact of 2022 Reset'!D68 -> -4521.267593
A71: Other | B71: 51214.43911 | C71: =-(B65-B72)-C66-C67-C68-C69-C70 -> 9279.085938 | E71: calculated as the residual (representing all other changes)
A72: Draft Reset starting price | B72: ='Impact of 2022 Reset'!C10 -> 56856.01745
A73: WACC | B73: =B72-C73 -> 56534.15802 | C73: ='Impact of 2022 Reset'!F101 -> 321.8594281
A74: Opex | B74: =B73-C74 -> 56575.14127 | C74: ='Impact of 2022 Reset'!F112 -> -40.98324298
A75: Capex | B75: 56503.21579 | C75: ='Impact of 2022 Reset'!F123 -> 71.92547286
A76: CPI forecast | B76: 56682.39747 | C76: ='Impact of 2022 Reset'!F134 -> -179.1816734
A77: Shortened asset lives with DY2021 data | B77: =B76-C77 -> 59717.40287 | C77: ='Impact of 2022 Reset'!F145 -> -3035.005405
A78: Smoothing | B78: 55196.13528 | C78: ='Impact of 2022 Reset'!F156 -> 4521.267593
A79: CPRG | B79: 55184.55886 | C79: ='Impact of 2022 Reset'!F166 -> 11.57641519
A80: Other | C80: =-(B72-B81)-SUM(C73:C79) -> -210.6924631 | E80: calculated as the residual (representing all other changes)
A81: Final Reset starting price | B81: ='Impact of 2022 Reset'!B81 -> 58316.78358
A83: First Gas Distribution | B83: Cumulative | C83: Incremental | E83: Notes
A85: Rolled over starting price | B85: ='Impact of 2022 Reset'!B11 -> 25681.79214
A86: WACC | B86: =B85-C86 -> 26289.97118 | C86: ='Impact of 2022 Reset'!E31 -> -608.1790479
A87: Opex | B87: 24713.21981 | C87: ='Impact of 2022 Reset'!D41 -> 1576.751371
A88: Capex | B88: 23628.2419 | C88: ='Impact of 2022 Reset'!D51 -> 1084.977915
A89: Shortened asset lives | B89: 21692.68472 | C89: ='Impact of 2022 Reset'!D60 -> 1935.557176
A90: Smoothing | B90: 26063.36971 | C90: ='Impact of 2022 Reset'!D69 -> -4370.68499
A91: Other | B91: 23113.61634 | C91: =-(B85-B92)-C86-C87-C88-C89-C90 -> 2949.753376 | E91: calculated as the residual (representing all other changes)
A92: Draft Reset starting price | B92: ='Impact of 2022 Reset'!C11 -> 28249.96793
A93: WACC | B93: =B92-C93 -> 28090.32863 | C93: ='Impact of 2022 Reset'!F102 -> 159.6393041
A94: Opex | B94: =B93-C94 -> 27868.21266 | C94: ='Impact of 2022 Reset'!F113 -> 222.1159697
A95: Capex | B95: 28315.85957 | C95: ='Impact of 2022 Reset'!F124 -> -447.6469093
A96: CPI forecast | B96: 28540.13595 | C96: ='Impact of 2022 Reset'!F135 -> -224.2763764
A97: Shortened asset lives with DY2021 data | B97: =B96-C97 -> 27963.25893 | C97: ='Impact of 2022 Reset'!F146 -> 576.8770195
A98: Smoothing | B98: 27963.25893 | C98: ='Impact of 2022 Reset'!F157 -> 0
A99: CPRG | B99: 28340.07618 | C99: ='Impact of 2022 Reset'!F167 -> -376.8172487
A100: Other | C100: =-(B92-B101)-SUM(C93:C99) -> 405.992388 | E100: calculated as the residual (representing all other changes)
A101: Final Reset starting price | B101: ='Impact of 2022 Reset'!B82 -> 28565.85208
A103: First Gas Transmission | B103: Cumulative | C103: Incremental | E103: Notes
A105: Rolled over starting price | B105: ='Impact of 2022 Reset'!B12 -> 135238.0414
A106: WACC | B106: =B105-C106 -> 138008.7481 | C106: ='Impact of 2022 Reset'!E32 -> -2770.70676
A107: Opex | B107: 135866.5889 | C107: ='Impact of 2022 Reset'!D42 -> 2142.159242
A108: Capex | B108: 107833.0698 | C108: ='Impact of 2022 Reset'!D52 -> 28033.51909
A109: Shortened asset lives | B109: 85122.01 | C109: ='Impact of 2022 Reset'!D61 -> 22711.05982
A110: Smoothing | B110: 108164.007 | C110: ='Impact of 2022 Reset'!D70 -> -23041.99697
A111: Other | B111: 121714.2315 | C111: =-(B105-B112)-C106-C107-C108-C109-C110 -> -13550.22458 | E111: calculated as the residual (representing all other changes)
A112: Draft Reset starting price | B112: ='Impact of 2022 Reset'!C12 -> 148761.8512
A113: WACC | B113: =B112-C113 -> 148033.3625 | C113: ='Impact of 2022 Reset'!F103 -> 728.488732
A114: Opex | B114: =B113-C114 -> 148101.1478 | C114: ='Impact of 2022 Reset'!F114 -> -67.78527562
A115: Capex | B115: 150216.4442 | C115: ='Impact of 2022 Reset'!F125 -> -2115.296398
A116: CPI forecast | B116: 150378.9961 | C116: ='Impact of 2022 Reset'!F136 -> -162.5518958
A117: Shortened asset lives with DY2021 data | B117: =B116-C117 -> 154227.7352 | C117: ='Impact of 2022 Reset'!F147 -> -3848.739081
A118: Smoothing | B118: 151003.1181 | C118: ='Impact of 2022 Reset'!F158 -> 3224.617057
A119: Other | C119: =-(B112-B120)-SUM(C113:C118) -> 706.6968428 | E119: calculated as the residual (representing all other changes)
A120: Final Reset starting price | B120: ='Impact of 2022 Reset'!B83 -> 147227.2812

Sheet Reasons Paper Tables
A1: Reasons Paper Tables
A4: 1 | B4: Starting prices (net of pass-through and recoverable costs)
B5: Supplier | C5: Starting prices (MAR) | D5: Impact of reset on price/revenue cap (MAR)
B6: GasNet | C6: ='Impact of 2022 Reset'!B79/1000 -> 4.852064024 | D6: ='Impact of 2022 Reset'!F79 -> 0.05402920358
B7: Powerco | C7: ='Impact of 2022 Reset'!B80/1000 -> 57.63291109 | D7: ='Impact of 2022 Reset'!F80 -> 0.05217893436
B8: Vector | C8: ='Impact of 2022 Reset'!B81/1000 -> 58.31678358 | D8: ='Impact of 2022 Reset'!F81 -> 0.07923636919
B9: First Gas distribution | C9: ='Impact of 2022 Reset'!B82/1000 -> 28.56585208 | D9: ='Impact of 2022 Reset'!F82 -> 0.1122997932
B10: First Gas transmission | C10: ='Impact of 2022 Reset'!B83/1000 -> 147.2272812 | D10: ='Impact of 2022 Reset'!F83 -> 0.088652865
B11: Industry total | C11: ='Impact of 2022 Reset'!B84/1000 -> 296.594892 | D11: ='Impact of 2022 Reset'!F84 -> 0.08114825188
